fUSD/lending_fUSD_20250228
["ID","MTS","AMOUNT","RATE_DAILY","PERIOD"]
[354889001,1740785367097,-10000.0,0.00015,2]
[354889003,1740785399626,-317.99890654,0.000149,2]
[354889004,1740785399660,-9682.00109346,0.00015,2]
[354889021,1740785420265,-300.0,0.00014999,2]
[354889022,1740785420287,-150.0,0.00014999,2]
[354889023,1740785420314,-9550.0,0.00015,2]
[354889033,1740785432136,-1287.74999999,0.00015,2]
[354889037,1740785432271,-500.0,0.00015,2]
[354889038,1740785432289,-246473.08428954,0.00015,2]
[354889039,1740785432307,-810.01068709,0.00015,2]
[354889040,1740785432354,-302091.64135025,0.00015,2]
[354889041,1740785432370,-14662.62076938,0.00015,2]
[354889042,1740785432564,-2643.39459498,0.00015,2]
[354889043,1740785432583,-2044.42780896,0.00015,2]
[354889044,1740785432732,-3983.04186657,0.00015,2]
[354889045,1740785432749,-23722.91703999,0.00015,2]
[354889046,1740785438014,-300.57929528,0.0001499,2]
[354889047,1740785438023,-11290.46834686,0.00015,2]
[354889048,1740785438055,-10000.0,0.00015,2]
[354889049,1740785438067,-3606.80758379,0.00015,2]
[354889050,1740785438078,-3374.025,0.00015,2]
[354889067,1740785440494,-1005.32904095,0.00015,2]
[354889078,1740785443646,-843.5771532,0.00015,2]
[354889080,1740785443657,-933.975,0.00015,2]
[354889084,1740785443684,-5953.35363682,0.00015,2]
[354889095,1740785444772,-26012.14706377,0.00015,2]
[354889096,1740785444804,-440.1849719,0.00015,2]
[354889097,1740785444816,-981.83,0.00015,2]
[354889098,1740785444827,-1510.02080844,0.00015,2]
[354889099,1740785444839,-50626.75530189,0.00015,2]
[354889100,1740785444849,-74556.45325476,0.00015,2]
[354889101,1740785446391,-28141.20877389,0.00015,2]
[354889102,1740785446406,-66353.07091257,0.00015,2]
[354889103,1740785446417,-1436.74816541,0.00015,2]
[354889104,1740785446485,-612.34305062,0.00015,2]
[354889105,1740785446497,-451.23409272,0.00015,2]
[354889106,1740785446539,-1111.0,0.00015,2]
[354889107,1740785447200,-10000.0,0.00015,2]
[354889112,1740785457953,-183.88250191,0.00014999,2]
[354889113,1740785457977,-9816.11749809,0.00015,2]
[354889114,1740785492277,162.92,0.00024712,30]
[354889118,1740785524730,267.285,0.00014825,2]
[354889120,1740785569741,311.94453249,0.0001485,2]
[354889121,1740785762376,2146.69078811,0.000148,2]
[354889123,1740785790807,150.0,0.00032686,120]
[354889126,1740785957058,207.96302166,0.000148,2]
[354889127,1740785963051,207.96302164,0.0001485,2]
[354889128,1740786035558,157.21,0.00025348,120]
[354889129,1740786035915,157.21,0.00027653,120]
[354889130,1740786186807,377.96744388,0.00014547,2]
[354889131,1740786344624,207.96302164,0.000148,2]
[354889252,1740786547841,-155.44194906,0.00014899,2]
[354889253,1740786547892,-5910.4703826,0.00014899,2]
[354889254,1740786548033,-4471.71172266,0.00014899,2]
[354889278,1740786572067,162.92,0.00024712,30]
[354889279,1740786572327,-5801.29831395,0.00014899,2]
[354889280,1740786572373,-78.91354375,0.00014899,2]
[354889292,1740786632491,-71.08645625,0.00014899,2]
[354889293,1740786632501,-300.0,0.00014899,2]
[354889294,1740786632511,-191.41354375,0.00014899,2]
[354889295,1740786632616,-258.58645625,0.00014899,2]
[354889296,1740786632625,-273.74354075,0.000149,2]
[354889297,1740786632637,-276.44,0.000149,2]
[354889298,1740786632648,-651.55427032,0.000149,2]
[354889319,1740786638380,-564.9999975,0.000149,2]
[354889320,1740786638448,-150.05979143,0.000149,2]
[354889321,1740786638457,-289.14848347,0.000149,2]
[354889322,1740786638469,-565.200005,0.000149,2]
[354889498,1740786640437,-400.21093349,0.000149,2]
[354889499,1740786640450,-101.95217804,0.000149,2]
[354889501,1740786640460,-168.70167901,0.000149,2]
[354889503,1740786640472,-2647.63116946,0.000149,2]
[354889505,1740786640481,-164.62473866,0.000149,2]
[354889507,1740786640491,-573.41495316,0.000149,2]
[354889509,1740786640503,-336.19,0.000149,2]
[354889511,1740786640514,-1689.86349011,0.000149,2]
[354889523,1740786640615,-22959.55568701,0.000149,2]
[354889525,1740786640625,-331.74947313,0.000149,2]
[354889526,1740786640635,-2258.72107628,0.00014909,2]
[354889529,1740786640648,-4085.65604653,0.00014909,2]
[354889533,1740786640673,-10066.94189879,0.00014909,2]
[354889535,1740786640682,-450.0,0.00014919,2]
[354889536,1740786640691,-500.0,0.00014973,2]
[354889539,1740786640701,-243370.40367404,0.00015,2]
[354889551,1740786640809,-324.185,0.00015,2]
[354889556,1740786640853,-255261.71760833,0.00015,2]
[354889557,1740786640862,-761.54186104,0.00015,2]
[354889558,1740786640871,-7291.859283,0.0001527,2]
[354889559,1740786640880,-7401.26363,0.0001528,2]
[354889560,1740786640889,-1517.64,0.000153,2]
[354889561,1740786640899,-16004.563575,0.000154,2]
[354889562,1740786640910,-486.71003664,0.000154,2]
[354889563,1740786640920,-159.36,0.00015745,2]
[354889564,1740786640929,-255.0,0.00016031,2]
[354889565,1740786640938,-250.0,0.00016301,2]
[354889566,1740786640948,-420.0,0.00016308,2]
[354889567,1740786640957,-150.0,0.00016389,2]
[354889568,1740786640966,-450.0,0.00016389,2]
[354889569,1740786640975,-500.0,0.00016567,2]
[354889570,1740786640985,-500.0,0.00016567,2]
[354889571,1740786640995,-500.0,0.00016567,2]
[354889572,1740786641004,-500.0,0.00016567,2]
[354889573,1740786641013,-179.43863927,0.00016567,2]
[354889574,1740786641022,-500.0,0.00016567,2]
[354889575,1740786641031,-169677.40085997,0.00016568,2]
[354889576,1740786641040,-500.0,0.00016573,2]
[354889577,1740786641048,-247.54,0.00016583,2]
[354889578,1740786641057,-176.52,0.00016712,2]
[354889579,1740786641066,-2920.02,0.00016805,2]
[354889580,1740786641075,-163.03,0.00016988,2]
[354889581,1740786641083,-180.0,0.0001785,2]
[354889582,1740786641092,-1139.22056656,0.00018,2]
[354889583,1740786641101,-2816.33284839,0.00018233,2]
[354889584,1740786641110,-157.21,0.00018435,2]
[354889585,1740786641119,-2222.22222,0.0001847,2]
[354889586,1740786641127,-2222.22222,0.0001854,2]
[354889587,1740786641136,-150.0,0.00018561,7]
[354889588,1740786641145,-4253.81916463,0.000186,2]
[354889589,1740786641154,-1418.12,0.00018625,2]
[354889590,1740786641163,-1000.0,0.00018632,3]
[354889591,1740786641173,-163.03,0.00018686,2]
[354889592,1740786641182,-2222.22223,0.000187,2]
[354889593,1740786641192,-218.16,0.0001878,2]
[354889594,1740786641202,-2222.22222,0.0001886,2]
[354889595,1740786641211,-2222.22223,0.0001901,2]
[354889596,1740786641219,-3314.9,0.00019071,2]
[354889597,1740786641229,-2222.22222,0.0001917,2]
[354889598,1740786641238,-935.28349655,0.00019196,2]
[354889599,1740786641247,-250.0,0.00019687,2]
[354889600,1740786641256,-500.0,0.00019853,2]
[354889601,1740786641265,-4201.13241796,0.00019857,2]
[354889602,1740786641274,-2078.7,0.00019884,2]
[354889603,1740786641284,-11561.26,0.00019967,2]
[354889604,1740786641294,-49999.999999,0.0002,2]
[354889605,1740786641303,-1117.89854444,0.0002,4]
[354889606,1740786641313,-1725.21918588,0.0002,4]
[354889607,1740786641322,-163.03,0.00020385,2]
[354889608,1740786641331,-181.12,0.00020409,2]
[354889609,1740786641341,-500.0,0.00020452,2]
[354889610,1740786641351,-157.21,0.00020739,2]
[354889611,1740786641360,-1127.43,0.00020785,2]
[354889612,1740786641370,-200.0,0.00020893,2]
[354889613,1740786641379,-23110.44,0.00020951,2]
[354889614,1740786641390,-28459.88,0.00020951,2]
[354889615,1740786641399,-1235.46,0.00020951,2]
[354889616,1740786641408,-17187.7,0.00020951,2]
[354889617,1740786641418,-250.0,0.00021,2]
[354889618,1740786641427,-737.98,0.00021222,2]
[354889619,1740786641437,-297.61,0.00021359,2]
[354889620,1740786641447,-174.64,0.00021411,2]
[354889621,1740786641457,-1000.0,0.00021553,2]
[354889622,1740786641470,-2816.33284839,0.00021567,2]
[354889623,1740786641480,-150.0,0.00021761,2]
[354889624,1740786641489,-3098.66,0.00021761,2]
[354889625,1740786641499,-170.71,0.00021918,2]
[354889626,1740786641509,-248.98534897,0.00022052,2]
[354889627,1740786641519,-600.0,0.00022078,2]
[354889628,1740786641528,-163.03,0.00022084,2]
[354889629,1740786641538,-300.0,0.00022307,2]
[354889630,1740786641548,-297.61,0.00022427,2]
[354889631,1740786641557,-200.0,0.00022494,2]
[354889632,1740786641567,-929.0,0.00022523,2]
[354889633,1740786641576,-300.0,0.00023,2]
[354889634,1740786641586,-157.21,0.00023044,2]
[354889635,1740786641596,-1127.43,0.00023049,2]
[354889636,1740786641606,-297.61,0.00023495,2]
[354889637,1740786641615,-2920.02,0.00023527,2]
[354889638,1740786641625,-23900.0,0.00023647,2]
[354889639,1740786641635,-300.0,0.00023677,2]
[354889640,1740786641645,-163.03,0.00023783,2]
[354889641,1740786641655,-214.81,0.00023836,2]
[354889642,1740786641665,-903.99,0.00023888,2]
[354889643,1740786641674,-1000.0,0.00024247,2]
[354889644,1740786641684,-2100.56,0.00024322,2]
[354889645,1740786641694,-297.61,0.00024563,2]
[354889646,1740786641704,-1000.0,0.00024658,2]
[354889647,1740786641714,-9316.87336283,0.000249,2]
[354889648,1740786641724,-2816.33284839,0.000249,2]
[354889649,1740786641734,-500.0,0.00024932,2]
[354889650,1740786641743,-500.0,0.00024932,2]
[354889651,1740786641754,-500.0,0.00024932,2]
[354889652,1740786641764,-350.0,0.00025,2]
[354889653,1740786641774,-1127.43,0.00025313,2]
[354889654,1740786641785,-163.03,0.00025482,2]
[354889655,1740786641795,-297.61,0.00025631,2]
[354889656,1740786641805,-500.0,0.00026082,2]
[354889657,1740786641815,-176.052,0.00026222,12]
[354889658,1740786641825,-3043.855,0.00026222,12]
[354889659,1740786641835,-1000.0,0.00026941,2]
[354889660,1740786641845,-400.0,0.00027,2]
[354889661,1740786641855,-1127.43,0.00027577,2]
[354889662,1740786641865,-9135.66583038,0.0002809,2]
[354889663,1740786641877,-9316.87336283,0.00028233,2]
[354889664,1740786641887,-2816.33284839,0.00028233,2]
[354889665,1740786641898,-450.0,0.00029,2]
[354889666,1740786641912,-1000.0,0.00029635,2]
[354889667,1740786641921,-1127.43,0.00029841,2]
[354889668,1740786641930,-164.62473864,0.000299,2]
[354889669,1740786641939,-227.07291651,0.0002999,2]
[354889670,1740786641950,-150.0,0.0003,2]
[354889671,1740786641960,-2506.65,0.00030577,2]
[354889672,1740786641969,-1264.84181888,0.00030991,3]
[354889673,1740786641981,-500.0,0.00031,2]
[354889674,1740786641991,-4627.3688869,0.0003143,4]
[354889675,1740786642000,-9316.87336283,0.00031567,2]
[354889676,1740786642009,-2816.33284839,0.00031567,2]
[354889677,1740786642019,-157.9,0.00031991,2]
[354889678,1740786642028,-34278.92981741,0.00031991,2]
[354889679,1740786642037,-621.32017374,0.00031991,2]
[354889680,1740786642046,-246.79003972,0.00031991,2]
[354889681,1740786642055,-1249.85529424,0.00031991,2]
[354889682,1740786642065,-180.46114764,0.00031991,2]
[354889683,1740786642075,-1031.65952095,0.00031991,2]
[354889684,1740786642084,-589.20345942,0.00031991,2]
[354889685,1740786642094,-5000.35826052,0.00031991,7]
[354889686,1740786642103,-4791.00093264,0.00031991,10]
[354889687,1740786642112,-1004.29832478,0.00031991,35]
[354889688,1740786642121,-639.12989896,0.00031991,30]
[354889689,1740786642131,-7232.78321157,0.00031991,30]
[354889690,1740786642140,-8073.37938934,0.00031991,2]
[354889692,1740786642150,-1127.43,0.00032105,2]
[354889693,1740786642159,-1000.0,0.0003233,2]
[354889694,1740786642168,-150.0,0.00032877,2]
[354889695,1740786642178,-2029.0,0.00032899,2]
[354889696,1740786642187,-1276.0,0.00032899,2]
[354889697,1740786642197,-150.0,0.00032899,2]
[354889698,1740786642206,-570.0,0.00032899,2]
[354889699,1740786642216,-1582.0,0.00032899,2]
[354889700,1740786642225,-640.0,0.00032899,2]
[354889701,1740786642387,-785.0,0.00032899,2]
[354889702,1740786642398,-540.0,0.00032899,2]
[354889703,1740786642408,-909.0,0.00032899,2]
[354889704,1740786642417,-1268.0,0.00032899,2]
[354889705,1740786642426,-1426.0,0.00032899,2]
[354889706,1740786642436,-4036.0,0.00032899,2]
[354889707,1740786642445,-1011.0,0.00032899,2]
[354889708,1740786642455,-160.239,0.00032899,2]
[354889709,1740786642464,-200.0,0.00032899,2]
[354889710,1740786642473,-3925.0,0.00032899,2]
[354889711,1740786642482,-150.0,0.00032899,2]
[354889712,1740786642492,-4745.68,0.000329,14]
[354889713,1740786642502,-331.74947312,0.000329,2]
[354889714,1740786642511,-550.0,0.00033,2]
[354889715,1740786642520,-150.0,0.00033742,2]
[354889716,1740786642530,-965.0,0.000339,2]
[354889717,1740786642539,-751.0,0.000339,2]
[354889718,1740786642549,-1127.43,0.00034369,2]
[354889719,1740786642558,-150.0,0.00034607,2]
[354889720,1740786642567,-799.0,0.00034866,5]
[354889721,1740786642577,-9316.87336283,0.000349,2]
[354889722,1740786642586,-2816.33284839,0.000349,2]
[354889723,1740786642595,-150.0,0.00035,2]
[354889724,1740786642605,-600.0,0.00035,2]
[354889725,1740786642615,-1569.49205603,0.00035,2]
[354889726,1740786642625,-2380.89000104,0.00035,90]
[354889727,1740786642634,-214.81,0.00035068,2]
[354889728,1740786642645,-150.0,0.00035472,2]
[354889729,1740786642654,-639.53206948,0.00035799,2]
[354889730,1740786642663,-300.57929529,0.00035889,2]
[354889731,1740786642672,-2029.0,0.00035899,2]
[354889732,1740786642682,-1276.0,0.00035899,2]
[354889733,1740786642691,-150.0,0.00035899,2]
[354889734,1740786642702,-570.0,0.00035899,2]
[354889735,1740786642712,-1582.0,0.00035899,2]
[354889736,1740786642721,-640.0,0.00035899,2]
[354889737,1740786642731,-785.0,0.00035899,2]
[354889738,1740786642740,-540.0,0.00035899,2]
[354889739,1740786642749,-909.0,0.00035899,2]
[354889740,1740786642759,-1268.0,0.00035899,2]
[354889741,1740786642768,-1426.0,0.00035899,2]
[354889742,1740786642777,-4036.0,0.00035899,2]
[354889743,1740786642787,-1011.0,0.00035899,2]
[354889744,1740786642796,-150.0,0.00035899,2]
[354889745,1740786642806,-3925.0,0.00035899,2]
[354889746,1740786642815,-150.0,0.00035899,2]
[354889747,1740786642824,-150.0,0.00036337,2]
[354889748,1740786642834,-1127.43,0.00036633,2]
[354889749,1740786642844,-4745.68,0.000367,14]
[354889750,1740786642854,-151.0,0.000367,7]
[354889751,1740786642863,-151.0,0.000367,7]
[354889752,1740786642873,-650.0,0.00037,2]
[354889753,1740786642882,-151701.58326237,0.00037,2]
[354889754,1740786642892,-2367.0,0.00037,117]
[354889755,1740786642904,-151.0,0.00037,7]
[354889756,1740786642914,-151.0,0.00037,7]
[354889757,1740786642924,-151.0,0.00037,7]
[354889758,1740786642933,-228.260668,0.00037,7]
[354889759,1740786642943,-151.0,0.00037,7]
[354889760,1740786642956,-151.0,0.00037,7]
[354889761,1740786642966,-150.0,0.00037203,2]
[354889762,1740786642976,-309852.28585083,0.00037899,2]
[354889763,1740786642986,-151.0,0.00037899,7]
[354889764,1740786642995,-151.0,0.00037899,7]
[354889765,1740786643005,-151.0,0.00037899,7]
[354889766,1740786643014,-151.0,0.00037899,7]
[354889767,1740786643023,-151.0,0.00037899,7]
[354889768,1740786643032,-151.0,0.00037899,7]
[354889769,1740786643041,-189.356203,0.00037899,7]
[354889770,1740786643051,-156.043298,0.00037899,7]
[354889771,1740786643059,-300.0,0.00038,2]
[354889772,1740786643069,-150.0,0.00038068,2]
[354889773,1740786643078,-639.53206946,0.00038149,2]
[354889774,1740786643087,-9316.87336283,0.00038233,2]
[354889775,1740786643097,-2816.33284839,0.00038233,2]
[354889776,1740786643106,-1127.43,0.00038896,2]
[354889777,1740786643115,-2029.0,0.00038899,2]
[354889779,1740786643124,-1276.0,0.00038899,2]
[354889781,1740786643134,-570.0,0.00038899,2]
[354889783,1740786643143,-1582.0,0.00038899,2]
[354889784,1740786643152,-640.0,0.00038899,2]
[354889785,1740786643162,-785.0,0.00038899,2]
[354889786,1740786643171,-540.0,0.00038899,2]
[354889787,1740786643181,-909.0,0.00038899,2]
[354889788,1740786643191,-1268.0,0.00038899,2]
[354889789,1740786643200,-1426.0,0.00038899,2]
[354889791,1740786643209,-4036.0,0.00038899,2]
[354889792,1740786643218,-1011.0,0.00038899,2]
[354889794,1740786643227,-3925.0,0.00038899,2]
[354889795,1740786643238,-150.0,0.00038899,2]
[354889796,1740786643247,-150.0,0.00038899,2]
[354889797,1740786643256,-150.0,0.00038933,2]
[354889798,1740786643270,-700.0,0.00039,2]
[354889799,1740786643279,-1000.0,0.00039,7]
[354889800,1740786643288,-153.33,0.00039137,2]
[354889802,1740786643297,-221.04,0.00039452,2]
[354889803,1740786643307,-151.77,0.00039452,2]
[354889804,1740786643317,-4745.68,0.000397,14]
[354889805,1740786643326,-150.0,0.00039798,2]
[354889806,1740786643335,-150.0,0.0004,2]
[354889807,1740786643344,-300.0,0.0004,2]
[354889808,1740786643353,-300.0,0.0004,2]
[354889809,1740786643362,-176.79,0.00040116,2]
[354889810,1740786643371,-300.0,0.000404,2]
[354889811,1740786643380,-300.0,0.000404,2]
[354889812,1740786643389,-639.53206946,0.00040499,2]
[354889813,1740786643398,-1000.0,0.000405,7]
[354889814,1740786643407,-150.0,0.00040663,2]
[354889815,1740786643416,-300.0,0.000408,2]
[354889816,1740786643426,-250.0,0.000408,2]
[354889817,1740786643435,-2921.90895067,0.00041,120]
[354889818,1740786643444,-153.33,0.00041094,2]
[354889819,1740786643454,-1127.43,0.0004116,2]
[354889820,1740786643463,-150.0,0.00041528,2]
[354889821,1740786643473,-9316.87336283,0.00041567,15]
[354889822,1740786643482,-2816.33284839,0.00041567,15]
[354889823,1740786643492,-4745.68,0.000416,14]
[354889824,1740786643500,-2029.0,0.00041899,2]
[354889825,1740786643509,-1276.0,0.00041899,2]
[354889826,1740786643518,-570.0,0.00041899,2]
[354889827,1740786643527,-1582.0,0.00041899,2]
[354889828,1740786643536,-636.0,0.00041899,2]
[354889829,1740786643546,-785.0,0.00041899,2]
[354889830,1740786643555,-540.0,0.00041899,2]
[354889831,1740786643563,-909.0,0.00041899,2]
[354889832,1740786643572,-1268.0,0.00041899,2]
[354889833,1740786643581,-1426.0,0.00041899,2]
[354889834,1740786643590,-4036.0,0.00041899,2]
[354889835,1740786643600,-1011.0,0.00041899,2]
[354889836,1740786643609,-3925.0,0.00041899,2]
[354889837,1740786643618,-150.0,0.00041899,2]
[354889838,1740786643627,-8924.14554384,0.00042,2]
[354889839,1740786643637,-1000.0,0.00042,7]
[354889840,1740786643646,-1323.39166717,0.0004201,2]
[354889841,1740786643655,-176.79,0.00042323,2]
[354889842,1740786643664,-150.0,0.00042394,2]
[354889843,1740786643673,-639.53206946,0.0004285,9]
[354889844,1740786643683,-558.0,0.00043,90]
[354889845,1740786643692,-152.0,0.00043,90]
[354889846,1740786643701,-558.0,0.00043014,90]
[354889847,1740786643711,-153.33,0.00043051,2]
[354889848,1740786643720,-150.0,0.00043259,2]
[354889849,1740786643729,-1127.43,0.00043424,2]
[354889850,1740786643738,-151.361328,0.00043442,14]
[354889851,1740786643747,-151.0,0.00043442,14]
[354889852,1740786643756,-151.0,0.00043442,14]
[354889853,1740786643765,-2562.418004,0.00043442,14]
[354889854,1740786643774,-151.0,0.00043442,14]
[354889855,1740786643784,-1829.0,0.000435,7]
[354889856,1740786643794,-70490.12373158,0.000438,2]
[354889857,1740786643803,-500.0,0.00043835,2]
[354889858,1740786643812,-500.0,0.00043835,2]
[354889859,1740786643821,-500.0,0.00043835,2]
[354889860,1740786643831,-640.69,0.00043835,2]
[354889861,1740786643840,-1000.0,0.00043836,2]
[354889862,1740786643850,-1000.0,0.00043836,2]
[354889863,1740786643860,-1000.0,0.00043836,2]
[354889864,1740786643869,-1000.0,0.00043836,2]
[354889865,1740786643881,-1017.0,0.00043836,2]
[354889866,1740786643890,-202.30039854,0.00043836,60]
[354889868,1740786643901,-276.82463952,0.00043885,30]
[354889869,1740786643911,-171.78462,0.000441,90]
[354889870,1740786643922,-150.0,0.00044124,2]
[354889871,1740786643932,-150.0,0.00044212,2]
[354889872,1740786643944,-150.0,0.00044241,2]
[354889873,1740786643955,-150.0,0.00044241,2]
[354889874,1740786643966,-150.0,0.00044244,2]
[354889875,1740786643977,-150.0,0.00044252,2]
[354889876,1740786643987,-150.0,0.00044281,2]
[354889877,1740786643999,-150.0,0.00044295,120]
[354889878,1740786644009,-150.0,0.00044305,2]
[354889879,1740786644021,-2849.85,0.00044319,2]
[354889880,1740786644031,-299.99,0.00044319,120]
[354889881,1740786644042,-2660.45,0.00044319,2]
[354889882,1740786644052,-4140.49,0.00044319,2]
[354889883,1740786644062,-1451.23,0.00044319,2]
[354889884,1740786644072,-1521.47,0.00044319,2]
[354889885,1740786644082,-9999.99,0.00044319,2]
[354889886,1740786644092,-499.99,0.00044319,2]
[354889887,1740786644101,-150.99,0.00044319,2]
[354889888,1740786644111,-150.99,0.00044319,30]
[354889889,1740786644121,-8878.69,0.00044319,2]
[354889890,1740786644131,-999.99,0.00044319,2]
[354889891,1740786644141,-9999.99,0.00044319,2]
[354889892,1740786644150,-150.0,0.00044327,2]
[354889893,1740786644159,-150.0,0.00044333,2]
[354889894,1740786644169,-150.0,0.00044344,2]
[354889895,1740786644178,-150.0,0.00044344,2]
[354889896,1740786644188,-150.0,0.00044365,2]
[354889897,1740786644199,-150.0,0.00044368,2]
[354889898,1740786644209,-150.0,0.00044392,2]
[354889899,1740786644218,-198.6902617,0.000444,120]
[354889900,1740786644228,-1102.87308165,0.000444,120]
[354889901,1740786644237,-1102.87308165,0.000444,120]
[354889902,1740786644246,-1102.87308165,0.000444,120]
[354889903,1740786644255,-1102.87308165,0.000444,120]
[354889904,1740786644264,-1102.87308165,0.000444,120]
[354889905,1740786644273,-1102.87308165,0.000444,120]
[354889906,1740786644282,-1102.87308165,0.000444,120]
[354889907,1740786644291,-1102.87308165,0.000444,120]
[354889908,1740786644299,-1102.87308165,0.000444,120]
[354889909,1740786644308,-1102.87308165,0.000444,120]
[354889910,1740786644317,-1102.87308165,0.000444,120]
[354889911,1740786644326,-1102.87308165,0.000444,120]
[354889912,1740786644335,-1102.87308165,0.000444,120]
[354889913,1740786644344,-1102.87308165,0.000444,120]
[354889914,1740786644486,-1102.87308165,0.000444,120]
[354889915,1740786644495,-1102.87308165,0.000444,120]
[354889916,1740786644505,-1102.87308165,0.000444,120]
[354889917,1740786644514,-1102.87308165,0.000444,120]
[354889918,1740786644524,-150.0,0.00044416,2]
[354889919,1740786644533,-150.0,0.00044435,2]
[354889920,1740786644542,-150.0,0.00044446,2]
[354889921,1740786644552,-150.0,0.0004445,2]
[354889922,1740786644561,-150.0,0.00044451,2]
[354889923,1740786644570,-150.0,0.00044454,2]
[354889924,1740786644580,-150.0,0.00044455,2]
[354889925,1740786644589,-150.0,0.0004448,2]
[354889926,1740786644599,-150.0,0.0004448,2]
[354889927,1740786644608,-150.0,0.00044487,2]
[354889928,1740786644618,-150.0,0.00044489,2]
[354889929,1740786644627,-150.0,0.00044501,2]
[354889930,1740786644637,-150.0,0.00044507,2]
[354889931,1740786644647,-150.0,0.00044514,2]
[354889932,1740786644656,-150.0,0.00044525,2]
[354889933,1740786644666,-176.79,0.0004453,2]
[354889934,1740786644676,-150.0,0.00044532,2]
[354889935,1740786644684,-150.0,0.00044545,2]
[354889936,1740786644694,-150.0,0.00044549,2]
[354889937,1740786644703,-150.0,0.0004455,2]
[354889938,1740786644713,-150.0,0.00044568,2]
[354889939,1740786644722,-221.04,0.00044585,2]
[354889940,1740786644732,-150.0,0.00044596,2]
[354889941,1740786644743,-150.0,0.00044617,2]
[354889942,1740786644754,-48533.90207512,0.0004462,2]
[354889943,1740786644763,-150.0,0.00044621,2]
[354889944,1740786644774,-150.0,0.00044637,2]
[354889945,1740786644784,-150.0,0.00044655,2]
[354889946,1740786644794,-150.0,0.00044672,2]
[354889947,1740786644804,-150.0,0.00044675,2]
[354889948,1740786644813,-150.0,0.00044697,2]
[354889949,1740786644823,-5000.0,0.000447,120]
[354889950,1740786644832,-964.81439034,0.000447,21]
[354889951,1740786644841,-150.0,0.00044704,2]
[354889952,1740786644850,-150.0,0.00044725,2]
[354889953,1740786644861,-150.0,0.00044726,2]
[354889954,1740786644870,-150.0,0.0004473,2]
[354889955,1740786644881,-150.0,0.00044735,2]
[354889956,1740786644890,-150.0,0.00044735,2]
[354889957,1740786644901,-150.0,0.00044754,2]
[354889958,1740786644917,-150.0,0.00044764,2]
[354889959,1740786644928,-150.0,0.00044766,2]
[354889960,1740786644939,-150.0,0.00044771,2]
[354889961,1740786644951,-150.0,0.00044778,2]
[354889962,1740786644960,-150.0,0.00044779,120]
[354889963,1740786644969,-150.0,0.0004479,2]
[354889964,1740786644980,-150.0,0.00044792,2]
[354889965,1740786644990,-150.0,0.00044794,2]
[354889966,1740786645000,-150.0,0.00044796,2]
[354889967,1740786645009,-150.0,0.00044812,2]
[354889968,1740786645019,-150.0,0.00044813,2]
[354889969,1740786645028,-150.0,0.00044814,2]
[354889970,1740786645038,-150.0,0.00044819,2]
[354889971,1740786645047,-150.0,0.00044827,2]
[354889972,1740786645056,-150.0,0.00044829,2]
[354889973,1740786645066,-150.0,0.0004483,2]
[354889974,1740786645075,-150.0,0.00044839,2]
[354889975,1740786645084,-150.0,0.00044844,2]
[354889976,1740786645094,-150.0,0.00044847,2]
[354889977,1740786645103,-150.0,0.00044847,2]
[354889978,1740786645112,-150.0,0.00044862,2]